bitfinex-derivatives/quotes_BTCF0:USTF0_20230401
["timestamp","ask_amount","ask_price","bid_price","bid_amount"]
[1680368898889,0.12466888,28362.0,28361.0,1.2120162]
[1680368903994,0.12466888,28362.0,28361.0,0.93647597]
[1680368904389,0.12466888,28362.0,28361.0,0.86607597]
[1680368905197,0.12466888,28362.0,28361.0,0.56537597]
[1680368905394,0.19516888,28362.0,28361.0,0.5230838]
[1680368905589,0.19516888,28362.0,28361.0,0.3027]
[1680368905796,0.24516888,28362.0,28361.0,0.3027]
[1680368906096,0.19516888,28362.0,28361.0,0.3027]
[1680368911496,0.19516888,28362.0,28361.0,0.34499217]
[1680368911697,0.19516888,28362.0,28361.0,0.04429217]
[1680368913804,0.19516888,28362.0,28361.0,0.002]
[1680368914405,0.19516888,28362.0,28361.0,0.04429217]
[1680368915411,0.19516888,28362.0,28361.0,0.002]
[1680368916809,0.19516888,28362.0,28361.0,0.04429217]
[1680368917112,0.19516888,28362.0,28361.0,0.002]
[1680368918010,0.19516888,28362.0,28361.0,0.04429217]
[1680368918212,0.23087946,28362.0,28361.0,0.04429217]
[1680368918614,0.23087946,28362.0,28361.0,0.002]
[1680368918811,0.23087946,28362.0,28361.0,0.04426717]
[1680368919211,0.23087946,28362.0,28361.0,0.09426717]
[1680368920117,0.23087946,28362.0,28361.0,0.39496717]
[1680368920318,0.23087946,28362.0,28361.0,0.41613826]
[1680368920520,0.23087946,28362.0,28361.0,0.63650781]
[1680368921813,0.0703,28363.0,28361.0,0.70690781]
[1680368922011,0.0703,28363.0,28362.0,0.11216564]
[1680368922214,0.0703,28363.0,28362.0,0.0699]
[1680368923511,0.0743,28363.0,28362.0,0.0699]
[1680368923817,0.0743,28363.0,28362.0,0.13333826]
[1680368924405,0.0703,28363.0,28362.0,0.13333826]
[1680368924609,0.0703,28363.0,28362.0,0.13533826]
[1680368924818,0.0703,28363.0,28362.0,0.0719]
[1680368926313,0.0703,28363.0,28362.0,0.13533826]
[1680368926922,0.0705,28363.0,28362.0,0.06543826]
[1680368929325,0.07043334,28363.0,28362.0,0.11543826]
[1680368932629,0.07043334,28363.0,28362.0,0.06543826]
[1680368932830,0.07043334,28363.0,28362.0,0.11543826]
[1680368933326,0.07043334,28363.0,28362.0,0.06543826]
[1680368936926,0.0703,28363.0,28362.0,0.13563826]
[1680368938634,0.0703,28363.0,28362.0,0.43633826]
[1680368941527,0.0703,28363.0,28362.0,0.3729]
[1680368943736,0.10511661,28363.0,28362.0,0.3729]
[1680368946938,0.10511661,28363.0,28362.0,0.3027]
[1680368948936,0.10511661,28363.0,28362.0,0.36613826]
[1680368949636,0.10511661,28363.0,28362.0,0.58650329]
[1680368954237,0.10511661,28363.0,28362.0,0.28580329]
[1680368954442,0.10511661,28363.0,28362.0,0.58650329]
[1680368955042,0.0703,28363.0,28362.0,0.58650329]
[1680368956442,0.0703,28363.0,28362.0,0.52306503]
[1680368956643,0.0703,28363.0,28362.0,0.56531972]
[1680368957041,0.0705,28364.0,28362.0,0.63521972]
[1680368957342,0.0705,28364.0,28363.0,0.1202]
[1680368957642,0.0705,28364.0,28363.0,0.34056503]
[1680368958143,0.0745,28364.0,28363.0,0.1202]
[1680368958349,0.0745,28364.0,28363.0,0.0702]
[1680368958642,0.0745,28364.0,28363.0,0.29056372]
[1680368958842,0.0745,28364.0,28363.0,0.34056372]
[1680368959044,0.0705,28364.0,28363.0,0.29056372]
[1680368959245,0.07443334,28364.0,28363.0,0.1202]
[1680368959645,0.07443334,28364.0,28363.0,0.0702]
[1680368960345,0.07443334,28364.0,28363.0,0.3709]
[1680368961742,0.07443334,28364.0,28363.0,0.63351789]
[1680368963943,0.07443334,28364.0,28363.0,0.65470146]
[1680368964249,0.0745,28364.0,28363.0,0.5210632]
[1680368964648,0.286,28364.0,28363.0,0.2203632]
[1680368964854,0.286,28364.0,28362.0,0.06343304]
[1680368965149,0.1907,28363.0,28362.0,0.06343304]
[1680368965553,0.1907,28363.0,28362.0,0.22037749]
[1680368966450,0.1907,28363.0,28362.0,0.28582594]
[1680368966845,0.1907,28363.0,28362.0,0.22237749]
[1680368967053,0.1907,28363.0,28362.0,0.28582532]
[1680368967446,0.1907,28363.0,28362.0,0.22237749]
[1680368967751,0.1907,28363.0,28362.0,0.28582711]
[1680368968348,0.1907,28363.0,28362.0,0.22237749]
[1680368968544,0.1407,28363.0,28362.0,0.22237749]
[1680368968744,0.0705,28363.0,28362.0,0.22237749]
[1680368971549,0.0705,28363.0,28362.0,0.28582098]
[1680368972146,0.0705,28363.0,28362.0,0.33582098]
[1680368972345,0.0705,28363.0,28362.0,0.28582098]
[1680368972549,0.0705,28363.0,28362.0,0.22237749]
[1680368972748,0.0705,28363.0,28362.0,0.06544349]
[1680368973048,0.0705,28363.0,28362.0,0.002]
[1680368974556,0.1205,28363.0,28362.0,0.04429595]
[1680368976750,0.0705,28363.0,28362.0,0.04429595]
[1680368976955,0.141,28363.0,28362.0,0.002]
[1680368977346,0.141,28363.0,28362.0,0.06544349]
[1680368977549,0.141,28363.0,28362.0,0.002]
[1680368977751,0.141,28363.0,28362.0,0.06544349]
[1680368977958,0.141,28363.0,28362.0,0.28581689]
[1680368978160,0.141,28363.0,28362.0,0.2223734]
[1680368978353,0.141,28363.0,28362.0,0.002]
[1680368979054,0.141,28363.0,28362.0,0.22237492]
[1680368981264,0.141,28363.0,28362.0,0.28581419]
[1680368982362,0.141,28363.0,28362.0,0.06543927]
[1680368984871,0.191,28363.0,28362.0,0.06543927]
[1680368986264,0.141,28363.0,28362.0,0.06543927]
[1680368986466,0.141,28363.0,28362.0,0.002]
[1680368986968,0.0705,28363.0,28362.0,0.002]
[1680368987272,0.0815,28363.0,28362.0,0.11443927]
[1680368987471,0.0815,28363.0,28362.0,0.06443927]
[1680368988673,0.0745,28363.0,28362.0,0.11343927]
[1680368989575,0.0745,28363.0,28362.0,0.06343927]
[1680368989776,0.0745,28363.0,28362.0,0.28381249]
[1680368990876,0.0745,28363.0,28362.0,0.33381249]
[1680368991773,0.0745,28363.0,28362.0,0.28381249]
[1680368991974,0.0745,28363.0,28362.0,0.27037322]
[1680368992476,0.0745,28363.0,28362.0,0.33380466]
[1680368993376,0.004,28363.0,28362.0,0.64117322]
[1680368995273,0.004,28363.0,28362.0,0.72576067]
[1680368995576,0.004,28363.0,28362.0,0.64117322]
[1680368996977,0.0743,28363.0,28362.0,0.57107322]
[1680368997177,0.0743,28363.0,28362.0,0.65566067]
[1680368997577,0.0743,28363.0,28362.0,0.57107322]
[1680368998779,0.0743,28363.0,28362.0,0.65566067]
[1680368998979,0.0743,28363.0,28362.0,0.57107322]
[1680368999576,0.0743,28363.0,28362.0,0.52107322]
[1680369008476,0.0743,28363.0,28362.0,0.22037322]
[1680369008683,0.0743,28363.0,28362.0,0.28381374]
[1680369008984,0.0743,28363.0,28362.0,0.26266737]
[1680369009185,0.0743,28363.0,28361.0,0.04229415]
[1680369009485,0.0705,28362.0,28361.0,0.04229415]
[1680369009685,0.0705,28362.0,28361.0,0.26267199]
[1680369010993,0.1407,28362.0,28360.0,0.04229415]
[1680369011183,0.1907,28361.0,28360.0,0.04229415]
[1680369011685,0.1907,28361.0,28360.0,0.04206043]
[1680369011991,0.1947,28361.0,28360.0,0.04206043]
[1680369012179,0.1447,28361.0,28360.0,0.04206043]
[1680369012380,0.1447,28361.0,28360.0,0.26245259]
[1680369012789,0.1447,28361.0,28360.0,0.04206043]
[1680369014594,0.1447,28361.0,28358.0,0.36414052]
[1680369014893,0.0742,28361.0,28359.0,0.22039538]
[1680369015094,0.0702,28360.0,28359.0,0.27039538]
[1680369015395,0.0702,28360.0,28359.0,0.22039538]
[1680369015892,0.0702,28360.0,28359.0,0.27039538]
[1680369016089,0.0702,28360.0,28359.0,0.22039538]
[1680369016590,0.0702,28360.0,28359.0,0.30498283]
[1680369016785,0.0702,28360.0,28359.0,0.53824729]
[1680369017188,0.0702,28360.0,28359.0,0.54024729]
[1680369017591,0.0742,28360.0,28359.0,0.53824729]
[1680369018099,0.0702,28360.0,28359.0,0.54024729]
[1680369018689,0.0702,28360.0,28359.0,0.30698283]
[1680369018896,0.0702,28360.0,28359.0,0.22239538]
[1680369019098,0.0702,28360.0,28359.0,0.22232872]
[1680369019388,0.0702,28360.0,28359.0,0.30691617]
[1680369019594,0.0702,28360.0,28359.0,0.22232872]
[1680369020190,0.0742,28360.0,28359.0,0.22032872]
[1680369021396,0.0742,28360.0,28359.0,0.30491617]
[1680369021597,0.0742,28360.0,28359.0,0.22032872]
[1680369024197,0.0702,28360.0,28359.0,0.22232872]
[1680369025799,0.0742,28360.0,28359.0,0.22032872]
[1680369026601,0.0742,28360.0,28359.0,0.06340444]
[1680369027003,0.1447,28360.0,28359.0,0.06340444]
[1680369027502,0.1947,28360.0,28359.0,0.06340444]
[1680369027801,0.4954,28360.0,28358.0,0.06340444]
[1680369028001,0.05,28358.0,28357.0,0.06340444]
[1680369028305,0.191,28358.0,28357.0,0.06340444]
[1680369028798,0.191,28358.0,28356.0,0.06340444]
[1680369029098,0.1205,28357.0,28356.0,0.06340444]
[1680369030002,0.1245,28357.0,28356.0,0.06340444]
[1680369030405,0.6376,28357.0,28356.0,0.06340444]
[1680369030592,0.6376,28357.0,28355.0,0.06340444]
[1680369030792,0.1407,28356.0,28355.0,0.06340444]
[1680369030993,0.1907,28356.0,28355.0,0.06340444]
[1680369031396,0.141,28355.0,28354.0,0.06340444]
[1680369031593,0.2817,28355.0,28354.0,0.28383195]
[1680369031996,0.2817,28355.0,28354.0,0.06340444]
[1680369032299,0.2827,28355.0,28354.0,0.07240444]
[1680369032804,0.2857,28355.0,28354.0,0.06340444]
[1680369033006,0.2857,28355.0,28353.0,0.36410444]
[1680369033200,0.0703,28354.0,28353.0,0.36410444]
[1680369033503,0.1203,28354.0,28353.0,0.36410444]
[1680369033804,0.0703,28354.0,28353.0,0.36410444]
[1680369034106,0.0703,28354.0,28353.0,0.36403778]
[1680369034605,0.0703,28354.0,28353.0,0.30063334]
[1680369034905,0.0703,28354.0,28353.0,0.30263334]
[1680369037106,0.1405,28354.0,28353.0,0.30263334]
[1680369038303,0.1405,28354.0,28353.0,0.002]
[1680369044710,0.1403606,28354.0,28353.0,0.002]
[1680369049417,0.1903606,28354.0,28353.0,0.002]
[1680369049912,0.1403606,28354.0,28353.0,0.002]
[1680369050114,0.0702,28354.0,28353.0,0.002]
[1680369050623,0.0702,28354.0,28353.0,0.052]
[1680369050817,0.0702,28354.0,28353.0,0.002]
[1680369051017,0.0702,28354.0,28353.0,0.052]
[1680369051813,0.0702,28354.0,28353.0,0.002]
[1680369055819,0.0702,28354.0,28353.0,0.052]
[1680369056013,0.0702,28354.0,28353.0,0.27242537]
[1680369056619,0.0702,28354.0,28353.0,0.28582981]
[1680369056814,0.0702,28354.0,28353.0,0.22242537]
[1680369058417,0.0702,28354.0,28353.0,0.28582981]
[1680369059319,0.26384031,28361.0,28353.0,0.29222537]
[1680369059514,0.26384031,28361.0,28359.0,0.3007]
[1680369059715,0.19344031,28361.0,28360.0,0.05]
[1680369059912,0.33444031,28361.0,28360.0,0.05]
[1680369060518,0.35144031,28361.0,28359.0,0.3027]
[1680369060719,0.21044031,28361.0,28360.0,0.05]
[1680369060913,0.35114031,28361.0,28360.0,0.05]
[1680369061219,0.35114031,28361.0,28359.0,0.002]
[1680369061422,0.191,28360.0,28359.0,0.002]
[1680369061623,0.141,28360.0,28359.0,0.002]
[1680369062013,0.141,28360.0,28357.0,0.05]
[1680369062326,0.0702,28358.0,28356.0,0.3007]
[1680369062524,0.0705,28357.0,28356.0,0.6014]
[1680369062716,0.0705,28357.0,28356.0,0.82180239]
[1680369063517,0.0715,28357.0,28356.0,0.83080239]
[1680369064216,0.07143334,28357.0,28356.0,0.83080239]
[1680369064818,0.07143334,28357.0,28356.0,0.83680239]
[1680369065821,0.07143334,28357.0,28356.0,0.53610239]
[1680369069031,0.07143334,28357.0,28356.0,0.59941399]
[1680369071933,0.14173334,28357.0,28356.0,0.59941399]
[1680369072134,0.14173334,28357.0,28356.0,0.3790116]
[1680369072337,0.14173334,28357.0,28356.0,0.3157]
[1680369072535,0.19173334,28357.0,28356.0,0.3157]
[1680369077037,0.33293334,28357.0,28356.0,0.3157]
[1680369077844,0.33293334,28357.0,28356.0,0.015]
[1680369078939,0.07143334,28357.0,28356.0,0.015]
[1680369083450,0.49263334,28357.0,28356.0,0.015]
[1680369084238,0.19193334,28357.0,28356.0,0.015]
[1680369086853,0.34343334,28357.0,28356.0,0.001]
[1680369087450,0.33643334,28357.0,28354.0,0.0633116]
[1680369087651,0.2817,28355.0,28354.0,0.0633116]
[1680369087851,0.0705,28356.0,28354.0,0.0699]
[1680369088057,0.0705,28356.0,28355.0,0.90917324]
[1680369088748,0.0705,28356.0,28355.0,0.82458579]
[1680369089252,0.0705,28356.0,28355.0,0.82658579]
[1680369089953,0.0715,28356.0,28355.0,0.83958579]
[1680369091654,0.0725,28356.0,28355.0,0.9270996]
[1680369091857,0.0725,28356.0,28355.0,0.60930357]
[1680369092155,0.0725,28356.0,28355.0,0.92708614]
[1680369094757,0.0725,28356.0,28355.0,1.22778614]
[1680369099162,0.0725,28356.0,28355.0,1.14327233]
[1680369103166,0.0725,28356.0,28355.0,1.22777883]
[1680369103865,0.0725,28356.0,28355.0,1.14327233]
[1680369106955,0.0723,28356.0,28355.0,1.07307233]
[1680369107962,0.0723,28356.0,28355.0,1.15758775]
[1680369110359,0.0723,28356.0,28355.0,1.07307233]
[1680369110767,0.0723,28356.0,28355.0,1.15758864]
[1680369112467,0.0723,28356.0,28355.0,1.07307233]
[1680369113766,0.0723,28356.0,28355.0,0.77237233]
[1680369114172,0.0723,28356.0,28355.0,0.85688756]
[1680369114565,0.0723,28356.0,28355.0,0.8567482]
[1680369115872,0.0723,28356.0,28355.0,0.85675687]
[1680369117075,0.0713,28356.0,28355.0,0.84775687]
[1680369117669,0.0713,28356.0,28355.0,0.84775659]
[1680369117874,0.0713,28356.0,28355.0,0.61447944]
[1680369118175,0.0713,28356.0,28355.0,0.52996421]
[1680369118573,0.0713,28356.0,28355.0,0.53696421]
[1680369118770,0.1415,28356.0,28355.0,0.53696421]
[1680369118972,0.1415,28356.0,28355.0,0.60035189]
[1680369119173,0.1415,28356.0,28355.0,0.59335189]
[1680369119576,0.1405,28356.0,28355.0,0.58435189]
[1680369119775,0.1415,28356.0,28355.0,0.60035189]
[1680369120576,0.1415,28356.0,28355.0,0.016]
[1680369123278,0.1415,28356.0,28355.0,0.23642857]
[1680369125174,0.1415,28356.0,28355.0,0.016]
[1680369126870,0.1415,28356.0,28355.0,0.07938768]
[1680369127077,0.1415,28356.0,28355.0,0.016]
[1680369131778,0.1415,28356.0,28355.0,0.05825681]
[1680369133883,0.1415,28356.0,28355.0,0.016]
[1680369134984,0.1415,28356.0,28355.0,0.05825681]
[1680369135884,0.1415,28356.0,28355.0,0.016]
[1680369136384,0.0712,28356.0,28355.0,0.05825681]
[1680369136586,0.0712,28356.0,28355.0,0.10825681]
[1680369136988,0.0712,28356.0,28355.0,0.12938768]
[1680369139188,0.0712,28356.0,28355.0,0.34977771]
[1680369139589,0.0712,28356.0,28355.0,0.28640593]
[1680369141390,0.0712,28356.0,28355.0,0.3007]
[1680369143288,0.001,28356.0,28355.0,0.60417439]
[1680369143488,0.0705,28359.0,28356.0,0.05]
[1680369143688,0.0705,28359.0,28358.0,0.43457155]
[1680369143888,0.0705,28359.0,28358.0,0.65495362]
[1680369144092,0.0705,28359.0,28358.0,0.59158333]
[1680369144290,0.0705,28359.0,28358.0,0.82483029]
[1680369144487,0.0705,28359.0,28358.0,0.82483262]
[1680369145190,0.0705,28359.0,28358.0,0.59158333]
[1680369145398,0.0765,28359.0,28358.0,0.59158333]
[1680369145888,0.0765,28359.0,28358.0,0.82482941]
[1680369146088,0.006,28359.0,28358.0,0.59108333]
[1680369146288,0.006,28359.0,28358.0,0.82432954]
[1680369147193,0.006,28359.0,28358.0,0.59108333]
[1680369149287,0.08410425,28370.0,28362.0,0.3526]
[1680369149492,0.20932265,28377.0,28362.0,0.3526]
[1680369149493,0.0345967,28377.0,28369.0,0.64361097]
[1680369149690,0.12615575,28383.0,28376.0,0.6713]
[1680369149886,0.52615575,28384.0,28380.0,0.3007]
[1680369150086,0.56194763,28384.0,28380.0,0.3007]
[1680369150296,0.45161342,28384.0,28380.0,0.3007]
[1680369150691,0.0705,28381.0,28380.0,0.3007]
[1680369151501,0.05161342,28384.0,28380.0,0.3707]
[1680369151701,0.027,28381.0,28380.0,0.3717]
[1680369151896,0.0975,28381.0,28380.0,0.3717]
[1680369152500,0.027,28381.0,28380.0,0.3017]
[1680369153101,0.027,28381.0,28380.0,0.3517]
[1680369153701,0.027,28381.0,28380.0,0.3017]
[1680369153900,0.1149,28381.0,28380.0,0.3017]
[1680369154202,0.1149,28381.0,28380.0,0.001]
[1680369154400,0.11470002,28381.0,28380.0,0.001]
[1680369157907,0.41540002,28381.0,28380.0,0.001]
[1680369158204,0.41540002,28381.0,28376.0,0.3007]
[1680369158403,0.0879,28377.0,28376.0,0.3007]
[1680369159905,0.0879,28378.0,28376.0,0.3007]
[1680369160105,0.05,28377.0,28376.0,0.3007]
[1680369160499,0.062,28377.0,28376.0,0.3017]
[1680369160903,0.1069,28378.0,28376.0,0.3017]
[1680369161098,0.1069,28378.0,28376.0,0.001]
[1680369161503,0.1499,28377.0,28376.0,0.001]
[1680369162101,0.1379,28377.0,28376.0,0.001]
[1680369163310,0.1499,28377.0,28376.0,0.001]
[1680369164499,0.0999,28377.0,28376.0,0.001]
[1680369166205,0.15179154,28377.0,28376.0,0.001]
[1680369176510,0.012,28377.0,28376.0,0.3017]
[1680369176908,0.012,28377.0,28376.0,0.3517]
[1680369180013,0.012,28377.0,28376.0,0.051]
[1680369180316,0.012,28377.0,28376.0,0.001]
[1680369180517,0.012,28377.0,28376.0,0.051]
[1680369181511,0.012,28377.0,28376.0,0.001]
[1680369181711,0.0999,28377.0,28376.0,0.001]
[1680369182317,0.1499,28377.0,28376.0,0.001]
[1680369185418,0.4506,28377.0,28376.0,0.001]
[1680369186523,0.1499,28377.0,28376.0,0.001]
[1680369186821,0.4506,28377.0,28376.0,0.001]
[1680369192917,0.4006,28377.0,28376.0,0.001]
[1680369193117,0.0999,28377.0,28376.0,0.001]
[1680369196525,0.012,28377.0,28376.0,0.1065174]
[1680369196721,0.012,28377.0,28376.0,0.001]
[1680369196922,0.012,28377.0,28376.0,0.27125064]
[1680369197626,0.012,28377.0,28376.0,0.051]
[1680369198420,0.0881,28382.0,28377.0,0.05]
[1680369198620,0.0881,28382.0,28379.0,0.3007]
[1680369198823,0.0881,28382.0,28380.0,0.05]
[1680369199329,0.1061,28382.0,28380.0,0.05]
[1680369199830,0.1061,28382.0,28380.0,0.052]
[1680369200135,0.018,28382.0,28380.0,0.1401]
[1680369202631,0.018,28382.0,28380.0,0.18232033]
[1680369203035,0.018,28382.0,28380.0,0.1401]
[1680369203936,0.018,28382.0,28381.0,0.0881]
[1680369204131,0.03565443,28385.0,28382.0,0.05]
[1680369204329,0.328,28390.0,28384.0,0.689]
[1680369204538,0.05267297,28390.0,28388.0,0.3007]
[1680369204739,0.0872,28391.0,28387.0,0.0881]
[1680369205029,0.0872,28391.0,28388.0,0.05]
[1680369205439,0.0872,28391.0,28388.0,0.052]
[1680369206644,0.0872,28391.0,28388.0,0.002]
[1680369207049,0.0879,28389.0,28388.0,0.002]
[1680369208245,0.19377536,28392.0,28388.0,0.0896]
[1680369208452,0.0879,28390.0,28389.0,0.05]
[1680369209444,0.0879,28390.0,28389.0,0.051]
[1680369209644,0.0879,28390.0,28389.0,0.3517]
[1680369210340,0.0879,28390.0,28389.0,0.051]
[1680369210538,0.0879,28390.0,28389.0,0.001]
[1680369210951,0.0879,28390.0,28389.0,0.3017]
[1680369211249,0.05394758,28390.0,28389.0,0.3898]
[1680369211441,0.52855301,28393.0,28389.0,0.3898]
[1680369211442,0.05,28392.0,28389.0,0.3898]
[1680369211647,0.19298948,28393.0,28390.0,0.05]
[1680369212944,0.3007,28396.0,28392.0,0.0881]
[1680369213553,0.3007,28396.0,28393.0,0.05]
[1680369214448,0.3007,28396.0,28393.0,0.052]
[1680369216150,0.3007,28396.0,28393.0,0.002]
[1680369216953,0.0878,28394.0,28393.0,0.002]
[1680369217552,0.1378,28394.0,28393.0,0.002]
[1680369219150,0.0878,28394.0,28393.0,0.002]
[1680369219350,0.1378,28394.0,28393.0,0.002]
[1680369219555,0.0878,28394.0,28393.0,0.002]
[1680369220458,0.1378,28394.0,28393.0,0.002]
[1680369222652,0.0878,28394.0,28393.0,0.002]
[1680369222857,0.1378,28394.0,28393.0,0.002]
[1680369225260,0.4385,28394.0,28393.0,0.002]
[1680369226467,0.5266,28394.0,28384.0,0.3888]
[1680369226761,0.0879,28389.0,28384.0,0.3888]
[1680369226967,0.0879,28387.0,28384.0,0.3007]
[1680369227158,0.0879,28387.0,28384.0,0.3507]
[1680369227359,0.0879,28387.0,28385.0,0.3007]
[1680369227554,0.0879,28387.0,28386.0,0.05]
[1680369228362,0.0879,28387.0,28385.0,0.3507]
[1680369228568,0.0879,28387.0,28385.0,0.3007]
[1680369229166,0.0879,28387.0,28386.0,0.024]
[1680369229565,0.0879,28387.0,28385.0,0.3247]
[1680369230467,0.0879,28387.0,28386.0,0.024]
[1680369230870,0.0879,28387.0,28385.0,0.3247]
[1680369231565,0.0879,28387.0,28385.0,0.3747]
[1680369231768,0.0879,28387.0,28385.0,0.3247]
[1680369232262,0.0879,28387.0,28385.0,0.3007]
[1680369232468,0.0879,28387.0,28386.0,0.024]
[1680369232865,0.0879,28387.0,28385.0,0.3247]
[1680369233062,0.0881,28386.0,28385.0,0.3247]
[1680369233266,0.0881,28386.0,28385.0,0.3007]
[1680369235069,0.0881,28386.0,28385.0,0.3247]
[1680369235369,0.0881,28386.0,28385.0,0.3287]
[1680369237265,0.14171724,28386.0,28385.0,0.3287]
[1680369243477,0.14171724,28386.0,28385.0,0.3787]
[1680369243777,0.14171724,28386.0,28385.0,0.3287]
[1680369243971,0.14171724,28386.0,28385.0,0.3787]
[1680369244171,0.14171724,28386.0,28385.0,0.3287]
[1680369244574,0.14171724,28386.0,28385.0,0.3787]
[1680369244775,0.14171724,28386.0,28385.0,0.3287]
[1680369247380,0.14171724,28386.0,28385.0,0.37092033]
[1680369249282,0.14171724,28386.0,28385.0,0.3287]
[1680369252384,0.19441724,28386.0,28385.0,0.3287]
[1680369254990,0.0705,28387.0,28385.0,0.49142033]
[1680369255287,0.0705,28387.0,28386.0,0.1205]
[1680369256295,0.0705,28387.0,28386.0,0.40398863]
[1680369256589,0.0705,28387.0,28386.0,0.34065938]
[1680369256992,0.12325683,28389.0,28386.0,0.34065938]
[1680369257292,0.0705,28389.0,28388.0,0.41340522]
[1680369257492,0.0881,28390.0,28388.0,0.34290522]
[1680369257791,0.0881,28390.0,28389.0,0.05]
[1680369259194,0.0881,28390.0,28388.0,0.35390522]
[1680369259395,0.0881,28390.0,28389.0,0.004]
[1680369261094,0.14149763,28390.0,28389.0,0.004]
[1680369271295,0.14149763,28390.0,28389.0,0.054]
[1680369271899,0.14149763,28390.0,28389.0,0.004]
[1680369272199,0.14149763,28390.0,28389.0,0.09620522]
[1680369272696,0.14149763,28390.0,28389.0,0.04620522]
[1680369276300,0.14149763,28390.0,28389.0,0.004]
[1680369276894,0.05339763,28390.0,28389.0,0.004]
[1680369277090,0.0877,28392.0,28389.0,0.05381777]
[1680369277297,0.0877,28392.0,28391.0,0.3007]
[1680369278999,0.0897,28392.0,28391.0,0.3017]
[1680369284411,0.0897,28392.0,28391.0,0.001]
[1680369293014,0.3348,28390.0,28386.0,0.04220522]
[1680369293204,0.0881,28386.0,28385.0,0.04220522]
[1680369293408,0.1762,28386.0,28385.0,0.04220522]
[1680369293715,0.2262,28386.0,28385.0,0.04220522]
[1680369293915,0.2262,28386.0,28384.0,0.04220522]
[1680369294213,0.1381,28385.0,28384.0,0.04220522]
[1680369295312,0.1381,28385.0,28384.0,0.04720522]
[1680369297112,0.0881,28385.0,28384.0,0.04720522]
[1680369297314,0.0961,28385.0,28384.0,0.04320522]
[1680369297614,0.14951626,28385.0,28384.0,0.04320522]
[1680369300011,0.14351626,28385.0,28384.0,0.04220522]
[1680369300517,0.14151626,28385.0,28384.0,0.04720522]
[1680369301918,0.14951626,28385.0,28384.0,0.04320522]
[1680369303012,0.14351626,28385.0,28384.0,0.04220522]
[1680369303415,0.05341626,28385.0,28384.0,0.04720522]
[1680369303620,0.0881,28386.0,28384.0,0.04720522]
[1680369304519,0.0901,28386.0,28384.0,0.04220522]
[1680369305922,0.14225906,28386.0,28384.0,0.04220522]
[1680369306527,0.14025906,28386.0,28384.0,0.04720522]
[1680369307021,0.14225906,28386.0,28384.0,0.04220522]
[1680369308422,0.14025906,28386.0,28384.0,0.04720522]
[1680369309124,0.14025906,28386.0,28384.0,0.005]
[1680369309721,0.14025906,28386.0,28384.0,0.055]
[1680369310122,0.14025906,28386.0,28384.0,0.005]
[1680369310621,0.1377,28385.0,28384.0,0.005]
[1680369311125,0.0877,28385.0,28384.0,0.005]
[1680369312228,0.0887,28385.0,28384.0,0.012]
[1680369312723,0.1387,28385.0,28384.0,0.012]
[1680369316531,0.0887,28385.0,28384.0,0.012]
[1680369317424,0.1416,28385.0,28384.0,0.012]
[1680369317826,0.0715,28385.0,28384.0,0.012]
[1680369321835,0.142,28385.0,28384.0,0.012]
[1680369324737,0.4427,28385.0,28384.0,0.012]
[1680369336133,0.4427,28385.0,28384.0,0.05420522]
[1680369338043,0.4427,28385.0,28384.0,0.07530784]
[1680369338636,0.142,28385.0,28384.0,0.07530784]
[1680369339441,0.142,28385.0,28384.0,0.0542529]
[1680369343647,0.192,28385.0,28384.0,0.012]
[1680369344744,0.199,28385.0,28384.0,0.001]
[1680369345046,0.203,28385.0,28384.0,0.001]
[1680369345647,0.199,28385.0,28384.0,0.001]
[1680369346546,0.211,28385.0,28384.0,0.002]
[1680369346846,0.161,28385.0,28384.0,0.0442529]
[1680369347142,0.04425,28384.0,28380.0,0.08369224]
[1680369347343,0.8828,28381.0,28379.0,0.00948904]
[1680369347542,0.2817,28380.0,28379.0,0.00948904]
[1680369347742,0.2825,28380.0,28379.0,0.00948904]
[1680369347944,0.3325,28380.0,28379.0,0.00948904]
[1680369348539,0.3595,28380.0,28379.0,0.01048904]
[1680369348942,0.3325,28380.0,28375.0,0.13452119]
[1680369349249,0.218,28380.0,28379.0,0.001]
[1680369349449,0.6083,28380.0,28379.0,0.001]
[1680369350652,0.3076,28380.0,28379.0,0.001]
[1680369350853,0.3076,28380.0,28377.0,0.05]
[1680369350854,0.909,28380.0,28377.0,0.05]
[1680369351050,0.909,28380.0,28375.0,0.13552119]
[1680369351051,0.1406,28378.0,28375.0,0.051]
[1680369351251,0.0702,28376.0,28375.0,0.05]
[1680369351553,0.0702,28376.0,28375.0,0.27025111]
[1680369351948,0.0702,28376.0,28375.0,0.22025111]
[1680369352349,0.0712,28376.0,28375.0,0.22925111]
[1680369353755,0.12521363,28376.0,28375.0,0.22925111]
[1680369353957,0.12521363,28376.0,28375.0,0.009]
[1680369354254,0.12521363,28376.0,28375.0,0.22925468]
[1680369354454,0.12521363,28376.0,28375.0,0.009]
[1680369365367,0.0712,28376.0,28375.0,0.009]
[1680369365558,0.0712,28376.0,28375.0,0.2292459]
[1680369365964,0.0712,28376.0,28375.0,0.009]
[1680369376276,0.0712,28376.0,28375.0,0.22925489]
[1680369379475,0.1417,28376.0,28375.0,0.22925489]
[1680369379673,0.1417,28376.0,28375.0,0.009]
[1680369379872,0.1917,28376.0,28375.0,0.009]
[1680369380067,0.1917,28376.0,28375.0,0.22926473]
[1680369380269,0.1417,28376.0,28375.0,0.22926473]
[1680369382778,0.4924,28376.0,28375.0,0.22926473]
[1680369383073,0.4424,28376.0,28375.0,0.22926473]
[1680369392580,0.1417,28376.0,28375.0,0.22926473]
[1680369393081,0.1417,28376.0,28375.0,0.59690176]
[1680369393685,0.0715,28376.0,28375.0,0.59690176]
[1680369395082,0.0715,28376.0,28375.0,0.51238057]
[1680369397189,0.0715,28376.0,28375.0,0.51231254]